[Event "32nd NATO Chess Championship"]
[Site "Tartu, Estonia"]
[Date "2022.06.28"]
[Round "3.17"]
[White "Flaata, Alexander R."]
[Black "Rosseel, Kimball"]
[Result "1/2-1/2"]
[TimeControl "90 min + 30 sec increment from move one"]
[WhiteFideId "1502026"]
[BlackFideId "233331"]
[WhiteElo "2048"]
[BlackElo "1831"]

1. d4 {[%clk 01:30:57]} {[%emt 00:00:02]} d6 {[%clk 01:30:54]} {[%emt
00:00:07]} 2. Bf4 {[%clk 01:30:26]} {[%emt 00:00:59]} g6 {[%clk 01:30:42]}
{[%emt 00:00:44]} 3. Nc3 {[%clk 01:30:25]} {[%emt 00:00:31]} Bg7 {[%clk
01:30:37]} {[%emt 00:00:35]} 4. e4 {[%clk 01:29:40]} {[%emt 00:01:15]} Nc6
{[%clk 01:29:56]} {[%emt 00:01:11]} 5. d5 {[%clk 01:25:03]} {[%emt 00:05:06]}
Nd4 {[%clk 01:27:32]} {[%emt 00:02:55]} 6. Nge2 {[%clk 01:24:04]} {[%emt
00:01:28]} c5 {[%clk 01:26:25]} {[%emt 00:01:38]} 7. dxc6 {[%clk 01:20:08]}
{[%emt 00:04:25]} Nxc6 {[%clk 01:26:11]} {[%emt 00:00:43]} 8. Qd2 {[%clk
01:18:50]} {[%emt 00:01:48]} Nf6 {[%clk 01:23:32]} {[%emt 00:03:10]} 9. Bh6
{[%clk 01:17:55]} {[%emt 00:01:25]} O-O {[%clk 01:23:32]} {[%emt 00:00:31]} 10.
h4 {[%clk 01:15:08]} {[%emt 00:03:16]} Bxh6 {[%clk 01:15:52]} {[%emt 00:08:11]}
11. Qxh6 {[%clk 01:15:29]} {[%emt 00:00:08]} Ng4 {[%clk 01:16:13]} {[%emt
00:00:09]} 12. Qd2 {[%clk 01:15:47]} {[%emt 00:00:12]} Qb6 {[%clk 01:13:25]}
{[%emt 00:03:18]} 13. Ng3 {[%clk 01:14:39]} {[%emt 00:01:37]} h6 {[%clk
01:03:51]} {[%emt 00:10:06]} 14. Bc4 {[%clk 01:13:15]} {[%emt 00:01:42]} Qd4
{[%clk 00:57:26]} {[%emt 00:07:06]} 15. Qxd4 {[%clk 01:08:51]} {[%emt
00:04:54]} Nxd4 {[%clk 00:57:54]} {[%emt 00:00:02]} 16. O-O-O {[%clk 01:09:08]}
{[%emt 00:00:13]} Nxc2 {[%clk 00:54:24]} {[%emt 00:04:00]} 17. Kxc2 {[%clk
01:02:05]} {[%emt 00:07:33]} Nxf2 {[%clk 00:54:41]} {[%emt 00:00:14]} 18. Nd5
{[%clk 01:00:51]} {[%emt 00:01:41]} Nxh1 {[%clk 00:51:41]} {[%emt 00:03:33]} 19.
Nxe7+ {[%clk 01:01:08]} {[%emt 00:00:11]} Kg7 {[%clk 00:51:11]} {[%emt
00:01:01]} 20. Rxh1 {[%clk 00:57:18]} {[%emt 00:04:20]} Be6 {[%clk 00:49:45]}
{[%emt 00:01:57]} 21. Kd3 {[%clk 00:55:59]} {[%emt 00:01:49]} Bxc4+ {[%clk
00:45:31]} {[%emt 00:04:44]} 22. Kxc4 {[%clk 00:56:19]} {[%emt 00:00:10]} Rfe8
{[%clk 00:45:03]} {[%emt 00:00:57]} 23. Nd5 {[%clk 00:56:09]} {[%emt 00:00:40]}
Rac8+ {[%clk 00:45:00]} {[%emt 00:00:33]} 24. Kd3 {[%clk 00:56:11]} {[%emt
00:00:27]} h5 {[%clk 00:41:55]} {[%emt 00:03:36]} 25. Rf1 {[%clk 00:54:00]}
{[%emt 00:02:40]} Re5 {[%clk 00:40:25]} {[%emt 00:02:02]} 26. Ne3 {[%clk
00:49:59]} {[%emt 00:04:30]} Rec5 {[%clk 00:35:59]} {[%emt 00:04:57]} 27. Ne2
{[%clk 00:50:09]} {[%emt 00:00:18]} b5 {[%clk 00:32:41]} {[%emt 00:03:50]} 28.
Nd4 {[%clk 00:45:31]} {[%emt 00:05:07]} a6 {[%clk 00:30:59]} {[%emt 00:02:13]}
29. Nb3 {[%clk 00:44:31]} {[%emt 00:01:29]} Re5 {[%clk 00:29:03]} {[%emt
00:02:26]} 30. Nd4 {[%clk 00:43:10]} {[%emt 00:01:50]} Rec5 {[%clk 00:20:00]}
{[%emt 00:09:34]} 31. Rf2 {[%clk 00:41:47]} {[%emt 00:01:53]} Re8 {[%clk
00:18:33]} {[%emt 00:01:57]} 32. Nf3 {[%clk 00:39:37]} {[%emt 00:02:39]} f6
{[%clk 00:16:45]} {[%emt 00:02:20]} 33. b4 {[%clk 00:39:16]} {[%emt 00:00:51]}
Rc7 {[%clk 00:14:20]} {[%emt 00:02:55]} 34. Nd5 {[%clk 00:39:05]} {[%emt
00:00:38]} Rf7 {[%clk 00:12:06]} {[%emt 00:02:46]} 35. Nd4 {[%clk 00:38:17]}
{[%emt 00:01:18]} Re5 {[%clk 00:10:54]} {[%emt 00:01:43]} 36. Nf3 {[%clk
00:37:51]} {[%emt 00:00:54]} Re8 {[%clk 00:09:17]} {[%emt 00:02:09]} 37. Nd4
{[%clk 00:37:34]} {[%emt 00:00:46]} Re5 {[%clk 00:09:10]} {[%emt 00:00:37]} 38.
Nc6 {[%clk 00:37:31]} {[%emt 00:00:32]} Re8 {[%clk 00:08:42]} {[%emt 00:00:59]}
39. Ne3 {[%clk 00:34:36]} {[%emt 00:03:25]} Rc8 {[%clk 00:06:30]} {[%emt
00:02:42]} 40. Nd4 {[%clk 00:34:43]} {[%emt 00:00:22]} Re8 {[%clk 00:06:36]}
{[%emt 00:00:25]} 41. Rc2 {[%clk 00:33:42]} {[%emt 00:01:30]} Rfe7 {[%clk
00:05:43]} {[%emt 00:01:24]} 42. Nef5+ {[%clk 00:27:20]} {[%emt 00:06:52]} gxf5
{[%clk 00:05:50]} {[%emt 00:00:23]} 43. Nxf5+ {[%clk 00:27:46]} {[%emt
00:00:05]} Kf8 {[%clk 00:05:29]} {[%emt 00:00:51]} 44. Nxe7 {[%clk 00:28:04]}
{[%emt 00:00:12]} Kxe7 {[%clk 00:05:28]} {[%emt 00:00:30]} 45. Ke3 {[%clk
00:25:34]} {[%emt 00:02:59]} Ke6 {[%clk 00:05:13]} {[%emt 00:00:46]} 46. Rc6
{[%clk 00:25:44]} {[%emt 00:00:19]} Ra8 {[%clk 00:03:46]} {[%emt 00:01:58]} 47.
Rb6 {[%clk 00:25:08]} {[%emt 00:01:06]} Kd7 {[%clk 00:02:43]} {[%emt 00:01:33]}
48. Rb7+ {[%clk 00:25:26]} {[%emt 00:00:12]} Ke6 {[%clk 00:02:57]} {[%emt
00:00:16]} 49. Kf4 {[%clk 00:25:37]} {[%emt 00:00:19]} Rc8 {[%clk 00:02:03]}
{[%emt 00:01:24]} 50. Rb6 {[%clk 00:25:10]} {[%emt 00:00:57]} Rc2 {[%clk
00:02:12]} {[%emt 00:00:22]} 51. Rxa6 {[%clk 00:25:25]} {[%emt 00:00:15]} Rxg2
{[%clk 00:02:40]} {[%emt 00:00:01]} 52. Kf3 {[%clk 00:25:26]} {[%emt 00:00:26]}
Rg4 {[%clk 00:03:02]} {[%emt 00:00:11]} 53. Ra5 {[%clk 00:25:51]} {[%emt
00:00:05]} Rxh4 {[%clk 00:03:08]} {[%emt 00:00:25]} 54. Rxb5 {[%clk 00:26:14]}
{[%emt 00:00:07]} Rh3+ {[%clk 00:01:52]} {[%emt 00:01:45]} 55. Kg2 {[%clk
00:24:57]} {[%emt 00:01:47]} Ra3 {[%clk 00:01:53]} {[%emt 00:00:29]} 56. Ra5
{[%clk 00:23:21]} {[%emt 00:02:06]} Re3 {[%clk 00:02:05]} {[%emt 00:00:18]} 57.
Rxh5 {[%clk 00:23:20]} {[%emt 00:00:31]} Rxe4 {[%clk 00:02:35]} 58. a3 {[%clk
00:22:48]} {[%emt 00:01:02]} d5 {[%clk 00:02:58]} {[%emt 00:00:06]} 59. b5
{[%clk 00:22:51]} {[%emt 00:00:28]} Kd6 {[%clk 00:03:03]} {[%emt 00:00:25]} 60.
Rh3 {[%clk 00:22:51]} {[%emt 00:00:29]} d4 {[%clk 00:02:21]} {[%emt 00:01:12]}
61. Rb3 {[%clk 00:23:06]} {[%emt 00:00:15]} Kc5 {[%clk 00:02:11]} {[%emt
00:00:41]} 62. a4 {[%clk 00:23:04]} {[%emt 00:00:32]} d3 {[%clk 00:02:29]}
{[%emt 00:00:11]} 63. Rc3+ {[%clk 00:22:19]} {[%emt 00:01:16]} Kb4 {[%clk
00:02:12]} {[%emt 00:00:47]} 64. Rxd3 {[%clk 00:22:42]} {[%emt 00:00:06]} Kxa4
{[%clk 00:02:32]} {[%emt 00:00:10]} 65. b6 {[%clk 00:22:54]} {[%emt 00:00:18]}
Rb4 {[%clk 00:03:01]} {[%emt 00:00:01]} 66. Rd6 {[%clk 00:22:20]} {[%emt
00:01:04]} Ka5 {[%clk 00:03:28]} {[%emt 00:00:03]} 67. Rxf6 {[%clk 00:22:41]}
{[%emt 00:00:09]} Rxb6 {[%clk 00:03:50]} {[%emt 00:00:08]} 68. Rxb6 {[%clk
00:23:04]} {[%emt 00:00:06]} 1/2-1/2

[Event "32nd NATO Chess Championship"]
[Site "Tartu, Estonia"]
[Date "2022.06.28"]
[Round "3.18"]
[White "Tustanowski, Mateusz"]
[Black "Allmann, Lauri"]
[Result "1-0"]
[TimeControl "90 min + 30 sec increment from move one"]
[WhiteFideId "1169866"]
[BlackFideId "2604868"]
[WhiteElo "2036"]
[BlackElo "1804"]

1. d4 {[%clk 01:30:56]} {[%emt 00:00:03]} Nf6 {[%clk 01:30:45]} {[%emt
00:00:16]} 2. Bf4 {[%clk 01:31:20]} {[%emt 00:00:07]} g6 {[%clk 01:30:41]}
{[%emt 00:00:32]} 3. Nc3 {[%clk 01:31:43]} {[%emt 00:00:06]} Bg7 {[%clk
01:31:00]} {[%emt 00:00:11]} 4. e4 {[%clk 01:32:08]} {[%emt 00:00:06]} d6
{[%clk 01:28:34]} {[%emt 00:02:55]} 5. Qd2 {[%clk 01:32:33]} {[%emt 00:00:05]}
a6 {[%clk 01:25:18]} {[%emt 00:03:47]} 6. O-O-O {[%clk 01:32:31]} {[%emt
00:00:31]} Nc6 {[%clk 01:22:59]} {[%emt 00:02:50]} 7. f3 {[%clk 01:30:18]}
{[%emt 00:02:43]} b5 {[%clk 01:20:43]} {[%emt 00:02:46]} 8. Bh6 {[%clk
01:29:51]} {[%emt 00:00:57]} Bxh6 {[%clk 01:16:50]} {[%emt 00:04:22]} 9. Qxh6
{[%clk 01:28:13]} {[%emt 00:02:07]} e5 {[%clk 01:16:26]} {[%emt 00:00:56]} 10.
dxe5 {[%clk 01:10:18]} {[%emt 00:18:25]} Nxe5 {[%clk 01:15:42]} {[%emt
00:01:14]} 11. h3 {[%clk 01:10:23]} {[%emt 00:00:24]} Ng8 {[%clk 01:08:04]}
{[%emt 00:08:08]} 12. Qe3 {[%clk 01:06:07]} {[%emt 00:04:46]} Ne7 {[%clk
01:05:58]} {[%emt 00:02:36]} 13. f4 {[%clk 01:06:20]} {[%emt 00:00:16]} N5c6
{[%clk 01:05:28]} {[%emt 00:01:02]} 14. Nd5 {[%clk 01:05:28]} {[%emt 00:01:21]}
Nxd5 {[%clk 00:57:49]} {[%emt 00:08:10]} 15. exd5+ {[%clk 01:05:45]} {[%emt
00:00:12]} Qe7 {[%clk 00:57:56]} {[%emt 00:00:23]} 16. Qc3 {[%clk 01:05:58]}
{[%emt 00:00:17]} O-O {[%clk 00:57:47]} {[%emt 00:00:39]} 17. Re1 {[%clk
01:04:17]} {[%emt 00:02:11]} Qh4 {[%clk 00:49:28]} {[%emt 00:08:49]} 18. g3
{[%clk 01:03:19]} {[%emt 00:01:28]} Nb4 {[%clk 00:46:05]} {[%emt 00:03:54]} 19.
gxh4 {[%clk 00:59:57]} {[%emt 00:03:51]} Nxa2+ {[%clk 00:46:19]} {[%emt
00:00:17]} 20. Kd2 {[%clk 01:00:23]} {[%emt 00:00:04]} Nxc3 {[%clk 00:46:30]}
{[%emt 00:00:19]} 21. Kxc3 {[%clk 01:00:46]} {[%emt 00:00:05]} Bb7 {[%clk
00:43:28]} {[%emt 00:03:32]} 22. Bg2 {[%clk 01:00:52]} {[%emt 00:00:24]} Rfe8
{[%clk 00:41:39]} {[%emt 00:02:20]} 23. Ne2 {[%clk 00:59:59]} {[%emt 00:01:23]}
Re3+ {[%clk 00:39:28]} {[%emt 00:02:41]} 24. Kd2 {[%clk 01:00:23]} {[%emt
00:00:06]} Re7 {[%clk 00:35:32]} {[%emt 00:04:26]} 25. Ng3 {[%clk 00:59:30]}
{[%emt 00:01:23]} Rd7 {[%clk 00:34:51]} {[%emt 00:01:11]} 26. h5 {[%clk
00:59:36]} {[%emt 00:00:23]} f5 {[%clk 00:32:39]} {[%emt 00:02:43]} 27. Re6
{[%clk 00:56:44]} {[%emt 00:03:22]} Kf7 {[%clk 00:31:25]} {[%emt 00:01:44]} 28.
Rhe1 {[%clk 00:55:34]} {[%emt 00:01:39]} Rg8 {[%clk 00:29:30]} {[%emt
00:02:26]} 29. Bf3 {[%clk 00:55:08]} {[%emt 00:00:56]} a5 {[%clk 00:28:44]}
{[%emt 00:01:16]} 30. h6 {[%clk 00:53:44]} {[%emt 00:01:53]} a4 {[%clk
00:27:44]} {[%emt 00:01:31]} 31. Nh5 {[%clk 00:52:36]} {[%emt 00:01:38]} gxh5
{[%clk 00:24:49]} {[%emt 00:03:24]} 32. Bxh5+ {[%clk 00:53:02]} {[%emt
00:00:04]} Rg6 {[%clk 00:23:34]} {[%emt 00:01:46]} 33. Bxg6+ {[%clk 00:53:28]}
{[%emt 00:00:04]} hxg6 {[%clk 00:22:59]} {[%emt 00:01:05]} 34. Re8 {[%clk
00:53:56]} {[%emt 00:00:02]} Bxd5 {[%clk 00:21:27]} {[%emt 00:02:03]} 35. h7
{[%clk 00:54:18]} {[%emt 00:00:07]} 1-0

[Event "32nd NATO Chess Championship"]
[Site "Tartu, Estonia"]
[Date "2022.06.28"]
[Round "3.19"]
[White "Lambruschini, Alex"]
[Black "Jacob, Tobias"]
[Result "0-1"]
[TimeControl "90 min + 30 sec increment from move one"]
[WhiteFideId "2604868"]
[BlackFideId "12903221"]
[WhiteElo "1807"]
[BlackElo "2013"]

1. Nf3 {[%clk 01:27:56]} {[%emt 00:03:03]} Nf6 {[%clk 01:30:39]} {[%emt
00:00:21]} 2. d4 {[%clk 01:28:01]} {[%emt 00:00:25]} g6 {[%clk 01:31:01]}
{[%emt 00:00:08]} 3. c4 {[%clk 01:28:13]} {[%emt 00:00:19]} Bg7 {[%clk
01:31:25]} {[%emt 00:00:06]} 4. Nc3 {[%clk 01:28:28]} {[%emt 00:00:14]} O-O
{[%clk 01:31:36]} {[%emt 00:00:19]} 5. e4 {[%clk 01:28:42]} {[%emt 00:00:16]}
d6 {[%clk 01:32:00]} {[%emt 00:00:06]} 6. Be2 {[%clk 01:28:44]} {[%emt
00:00:27]} e5 {[%clk 01:31:49]} {[%emt 00:00:43]} 7. dxe5 {[%clk 01:27:31]}
{[%emt 00:01:42]} dxe5 {[%clk 01:32:02]} {[%emt 00:00:17]} 8. Bg5 {[%clk
01:27:38]} {[%emt 00:00:20]} Qxd1+ {[%clk 01:24:52]} {[%emt 00:07:43]} 9. Rxd1
{[%clk 01:27:52]} {[%emt 00:00:16]} c6 {[%clk 01:16:25]} {[%emt 00:08:57]} 10.
Rd6 {[%clk 01:22:19]} {[%emt 00:06:01]} Be6 {[%clk 01:03:40]} {[%emt 00:13:17]}
11. h4 {[%clk 01:17:52]} {[%emt 00:04:56]} h6 {[%clk 01:01:20]} {[%emt
00:02:50]} 12. Be3 {[%clk 01:16:55]} {[%emt 00:01:27]} Nbd7 {[%clk 00:59:22]}
{[%emt 00:02:28]} 13. O-O {[%clk 01:10:03]} {[%emt 00:07:22]} Rfe8 {[%clk
00:55:55]} {[%emt 00:03:57]} 14. Nh2 {[%clk 01:06:51]} {[%emt 00:03:42]} Bf8
{[%clk 00:54:07]} {[%emt 00:02:19]} 15. Rdd1 {[%clk 01:06:53]} {[%emt
00:00:27]} Nc5 {[%clk 00:44:57]} {[%emt 00:09:40]} 16. f3 {[%clk 00:56:49]}
{[%emt 00:10:35]} Nh5 {[%clk 00:44:06]} {[%emt 00:01:21]} 17. Ng4 {[%clk
00:54:28]} {[%emt 00:02:50]} Bxg4 {[%clk 00:41:55]} {[%emt 00:02:43]} 18. fxg4
{[%clk 00:54:48]} {[%emt 00:00:09]} Ng3 {[%clk 00:41:17]} {[%emt 00:01:09]} 19.
Rfe1 {[%clk 00:47:20]} {[%emt 00:07:53]} Ngxe4 {[%clk 00:37:27]} {[%emt
00:04:24]} 20. Nxe4 {[%clk 00:46:28]} {[%emt 00:01:21]} Nxe4 {[%clk 00:37:49]}
{[%emt 00:00:09]} 21. Bd3 {[%clk 00:45:14]} {[%emt 00:01:42]} Nf6 {[%clk
00:33:56]} {[%emt 00:04:24]} 22. Be2 {[%clk 00:42:23]} {[%emt 00:03:21]} b6
{[%clk 00:22:33]} {[%emt 00:11:53]} 23. Rf1 {[%clk 00:39:19]} {[%emt 00:03:34]}
Re6 {[%clk 00:07:40]} {[%emt 00:15:24]} 24. Kh2 {[%clk 00:37:50]} {[%emt
00:01:58]} Rae8 {[%clk 00:06:19]} {[%emt 00:01:52]} 25. Kh3 {[%clk 00:37:29]}
{[%emt 00:00:49]} Kg7 {[%clk 00:05:29]} {[%emt 00:01:21]} 26. g5 {[%clk
00:36:32]} {[%emt 00:01:28]} hxg5 {[%clk 00:05:54]} {[%emt 00:00:05]} 27. Bxg5
{[%clk 00:34:48]} {[%emt 00:02:13]} Nh7 {[%clk 00:03:57]} {[%emt 00:02:28]} 28.
Bc1 {[%clk 00:26:37]} {[%emt 00:08:41]} Bc5 {[%clk 00:03:06]} {[%emt 00:01:21]}
29. g4 {[%clk 00:20:51]} {[%emt 00:06:15]} f6 {[%clk 00:02:32]} {[%emt
00:01:04]} 30. a3 {[%clk 00:16:11]} {[%emt 00:05:11]} Bd4 {[%clk 00:02:39]}
{[%emt 00:00:23]} 31. Bf3 {[%clk 00:15:11]} {[%emt 00:01:29]} Nf8 {[%clk
00:02:23]} {[%emt 00:00:48]} 32. Be4 {[%clk 00:14:30]} {[%emt 00:01:09]} Nd7
{[%clk 00:02:19]} {[%emt 00:00:35]} 33. b4 {[%clk 00:11:58]} {[%emt 00:03:02]}
Nf8 {[%clk 00:01:37]} {[%emt 00:01:12]} 34. a4 {[%clk 00:11:01]} {[%emt
00:01:28]} Rd8 {[%clk 00:01:28]} {[%emt 00:00:38]} 35. b5 {[%clk 00:09:59]}
{[%emt 00:01:32]} cxb5 {[%clk 00:01:34]} {[%emt 00:00:24]} 36. axb5 {[%clk
00:08:16]} {[%emt 00:02:12]} Red6 {[%clk 00:01:35]} {[%emt 00:00:29]} 37. Bd5
{[%clk 00:07:57]} {[%emt 00:00:49]} Ne6 {[%clk 00:01:15]} {[%emt 00:00:50]} 38.
Ba3 {[%clk 00:07:03]} {[%emt 00:01:24]} Bc5 {[%clk 00:01:30]} {[%emt 00:00:16]}
39. Bxc5 {[%clk 00:06:55]} {[%emt 00:00:38]} Nxc5 {[%clk 00:01:38]} {[%emt
00:00:22]} 40. Ra1 {[%clk 00:04:27]} {[%emt 00:02:58]} R8d7 {[%clk 00:01:59]}
{[%emt 00:00:09]} 41. Ra3 {[%clk 00:04:01]} {[%emt 00:00:54]} Ne6 {[%clk
00:02:09]} {[%emt 00:00:21]} 42. Bc6 {[%clk 00:01:02]} {[%emt 00:03:29]} Rd3+
{[%clk 00:01:50]} {[%emt 00:00:48]} 43. Rxd3 {[%clk 00:01:25]} {[%emt
00:00:08]} Rxd3+ {[%clk 00:02:17]} {[%emt 00:00:03]} 44. Rf3 {[%clk 00:01:41]}
{[%emt 00:00:13]} Rd6 {[%clk 00:00:40]} {[%emt 00:02:07]} 45. Ra3 {[%clk
00:01:41]} {[%emt 00:00:31]} a5 {[%clk 00:00:58]} {[%emt 00:00:12]} 46. bxa6
{[%clk 00:01:47]} {[%emt 00:00:24]} Rxc6 {[%clk 00:01:17]} {[%emt 00:00:11]} 47.
a7 {[%clk 00:02:11]} {[%emt 00:00:06]} Nc7 {[%clk 00:01:18]} {[%emt 00:00:30]}
48. a8=Q {[%clk 00:02:29]} {[%emt 00:00:11]} Nxa8 {[%clk 00:01:42]} {[%emt
00:00:06]} 49. Rxa8 {[%clk 00:02:45]} {[%emt 00:00:14]} Rxc4 {[%clk 00:01:26]}
{[%emt 00:00:46]} 50. Rb8 {[%clk 00:02:53]} {[%emt 00:00:22]} Rc3+ {[%clk
00:01:38]} {[%emt 00:00:18]} 51. Kg2 {[%clk 00:03:11]} {[%emt 00:00:11]} Rb3
{[%clk 00:01:23]} {[%emt 00:00:46]} 52. Kf2 {[%clk 00:02:56]} {[%emt 00:00:45]}
f5 {[%clk 00:01:22]} {[%emt 00:00:31]} 53. Rb7+ {[%clk 00:02:17]} {[%emt
00:01:09]} Kh6 {[%clk 00:00:42]} {[%emt 00:01:10]} 54. gxf5 {[%clk 00:02:02]}
{[%emt 00:00:45]} gxf5 {[%clk 00:01:04]} {[%emt 00:00:08]} 55. Re7 {[%clk
00:02:11]} {[%emt 00:00:19]} e4 {[%clk 00:01:17]} {[%emt 00:00:18]} 56. Ke2
{[%clk 00:01:54]} {[%emt 00:00:48]} Kh5 {[%clk 00:01:16]} {[%emt 00:00:31]} 57.
Re5 {[%clk 00:01:59]} {[%emt 00:00:24]} Kg4 {[%clk 00:01:31]} {[%emt 00:00:16]}
58. Kd2 {[%clk 00:02:10]} {[%emt 00:00:19]} Rd3+ {[%clk 00:01:31]} {[%emt
00:00:29]} 59. Kc2 {[%clk 00:02:00]} {[%emt 00:00:41]} Rd6 {[%clk 00:01:54]}
{[%emt 00:00:06]} 60. h5 {[%clk 00:02:08]} {[%emt 00:00:21]} Kf4 {[%clk
00:02:11]} {[%emt 00:00:14]} 0-1

[Event "32nd NATO Chess Championship"]
[Site "Tartu, Estonia"]
[Date "2022.06.28"]
[Round "3.20"]
[White "Hernandez, Albert"]
[Black "Ivanovs, Aleksejs"]
[Result "1-0"]
[TimeControl "90 min + 30 sec increment from move one"]
[WhiteFideId "2075407"]
[BlackFideId "11626283"]
[WhiteElo "2012"]
[BlackElo "1784"]

1. d4 {[%clk 01:30:54]} {[%emt 00:00:05]} d5 {[%clk 01:30:49]} {[%emt
00:00:12]} 2. c4 {[%clk 01:31:17]} {[%emt 00:00:07]} e6 {[%clk 01:30:33]}
{[%emt 00:00:45]} 3. Nc3 {[%clk 01:31:43]} {[%emt 00:00:04]} Nf6 {[%clk
01:30:45]} {[%emt 00:00:19]} 4. Bg5 {[%clk 01:32:00]} {[%emt 00:00:12]} Nbd7
{[%clk 01:29:32]} {[%emt 00:01:43]} 5. Nf3 {[%clk 01:31:38]} {[%emt 00:00:52]}
Be7 {[%clk 01:29:17]} {[%emt 00:00:44]} 6. g3 {[%clk 01:31:58]} {[%emt
00:00:11]} O-O {[%clk 01:28:53]} {[%emt 00:00:54]} 7. Bg2 {[%clk 01:32:21]}
{[%emt 00:00:07]} c6 {[%clk 01:26:40]} {[%emt 00:02:44]} 8. O-O {[%clk
01:32:40]} {[%emt 00:00:11]} h6 {[%clk 01:26:22]} {[%emt 00:00:47]} 9. Bf4
{[%clk 01:32:12]} {[%emt 00:00:57]} dxc4 {[%clk 01:25:05]} {[%emt 00:01:48]} 10.
Nd2 {[%clk 01:32:28]} {[%emt 00:00:14]} Nb6 {[%clk 01:24:32]} {[%emt 00:01:02]}
11. a4 {[%clk 01:30:57]} {[%emt 00:02:02]} a5 {[%clk 01:24:26]} {[%emt
00:00:35]} 12. e4 {[%clk 01:30:39]} {[%emt 00:00:48]} Nh7 {[%clk 01:20:26]}
{[%emt 00:04:31]} 13. Be3 {[%clk 01:29:05]} {[%emt 00:02:04]} Bg5 {[%clk
01:15:38]} {[%emt 00:05:18]} 14. f4 {[%clk 01:29:17]} {[%emt 00:00:17]} Be7
{[%clk 01:15:41]} {[%emt 00:00:28]} 15. Qe2 {[%clk 01:29:34]} {[%emt 00:00:12]}
g5 {[%clk 01:11:47]} {[%emt 00:04:25]} 16. Nxc4 {[%clk 01:20:41]} {[%emt
00:09:23]} Nxc4 {[%clk 01:10:28]} {[%emt 00:01:49]} 17. Qxc4 {[%clk 01:21:04]}
{[%emt 00:00:07]} gxf4 {[%clk 01:10:06]} {[%emt 00:00:51]} 18. Bxf4 {[%clk
01:19:33]} {[%emt 00:02:02]} Bg5 {[%clk 01:08:34]} {[%emt 00:02:02]} 19. e5
{[%clk 01:19:48]} {[%emt 00:00:15]} h5 {[%clk 01:05:48]} {[%emt 00:03:16]} 20.
Ne4 {[%clk 01:18:33]} {[%emt 00:01:44]} Bxf4 {[%clk 01:02:15]} {[%emt
00:04:04]} 21. Rxf4 {[%clk 01:18:42]} {[%emt 00:00:21]} f5 {[%clk 01:02:12]}
{[%emt 00:00:32]} 22. exf6 {[%clk 01:17:46]} {[%emt 00:01:27]} Nxf6 {[%clk
01:01:27]} {[%emt 00:01:15]} 23. Raf1 {[%clk 01:17:33]} {[%emt 00:00:42]} Nh7
{[%clk 01:01:00]} {[%emt 00:00:58]} 24. Rxf8+ {[%clk 01:16:33]} {[%emt
00:01:30]} Nxf8 {[%clk 01:01:20]} {[%emt 00:00:10]} 25. Nf6+ {[%clk 01:16:16]}
{[%emt 00:00:47]} Kh8 {[%clk 01:00:53]} {[%emt 00:00:57]} 26. Qc5 {[%clk
01:16:14]} {[%emt 00:00:31]} b6 {[%clk 00:59:25]} {[%emt 00:01:59]} 27. Qxh5+
{[%clk 01:16:23]} {[%emt 00:00:20]} 1-0